fUST/lending_fUST_20250216
["ID","MTS","AMOUNT","RATE_DAILY","PERIOD"]
[353188239,1739638234982,-500.88703629,8.862e-05,2]
[353188240,1739638234991,-500.0,8.862e-05,2]
[353188241,1739638235000,-5115.23,8.862e-05,2]
[353188242,1739638235010,-500.0,8.862e-05,2]
[353188243,1739638235019,-500.0,8.862e-05,2]
[353188244,1739638235029,-500.0,8.862e-05,2]
[353188245,1739638235038,-1027.65,8.862e-05,2]
[353188246,1739638235048,-500.0,8.862e-05,2]
[353188247,1739638235058,-926.39,8.862e-05,2]
[353188248,1739638235067,-2089.11,8.862e-05,2]
[353188249,1739638235076,-500.0,8.862e-05,2]
[353188250,1739638235087,-500.0,8.862e-05,2]
[353188251,1739638235096,-500.0,8.862e-05,2]
[353188252,1739638235106,-1611.75,8.862e-05,2]
[353188253,1739638235115,-500.0,8.862e-05,2]
[353188254,1739638235124,-500.0,8.862e-05,2]
[353188255,1739638235134,-500.0,8.862e-05,2]
[353188256,1739638235144,-167.22536671,8.863e-05,2]
[353188257,1739638235153,-500.0,8.863e-05,2]
[353188258,1739638235163,-500.0,8.863e-05,2]
[353188259,1739638235172,-500.0,8.863e-05,2]
[353188260,1739638235182,-500.0,8.863e-05,2]
[353188261,1739638235191,-500.0,8.863e-05,2]
[353188262,1739638235200,-500.0,8.863e-05,2]
[353188263,1739638235210,-500.0,8.863e-05,2]
[353188264,1739638235219,-500.0,8.863e-05,2]
[353188265,1739638235228,-500.0,8.863e-05,2]
[353188266,1739638235239,-500.0,8.863e-05,2]
[353188267,1739638235248,-500.0,8.863e-05,2]
[353188268,1739638235258,-500.0,8.863e-05,2]
[353188269,1739638235268,-500.0,8.863e-05,2]
[353188270,1739638235277,-516.91985088,8.863e-05,2]
[353188271,1739638235287,-500.0,8.863e-05,2]
[353188272,1739638235299,-500.0,8.863e-05,2]
[353188273,1739638235308,-810.91,8.863e-05,2]
[353188274,1739638235318,-500.0,8.863e-05,2]
[353188275,1739638235411,-599.57,8.863e-05,2]
[353188276,1739638235434,-500.0,8.863e-05,2]
[353188277,1739638235444,-500.0,8.863e-05,2]
[353188278,1739638235453,-500.0,8.863e-05,2]
[353188279,1739638235463,-1504.34,8.863e-05,2]
[353188280,1739638235474,-500.0,8.863e-05,2]
[353188281,1739638235483,-55770.02,8.863e-05,2]
[353188282,1739638235493,-500.0,8.863e-05,2]
[353188283,1739638235503,-500.0,8.863e-05,2]
[353188284,1739638235512,-500.0,8.863e-05,2]
[353188285,1739638235521,-2898.05,8.863e-05,2]
[353188286,1739638235530,-1960.91,8.863e-05,2]
[353188287,1739638235540,-500.0,8.863e-05,2]
[353188288,1739638235549,-21758.56003816,8.863e-05,2]
[353188294,1739638238177,-500.0,8.861e-05,2]
[353188295,1739638238186,-79.938,8.861e-05,2]
[353188299,1739638240362,-500.0,8.86e-05,2]
[353188300,1739638240372,-348.36863073,8.861e-05,2]
[353188301,1739638240382,-500.0,8.861e-05,2]
[353188302,1739638240394,-500.0,8.861e-05,2]
[353188303,1739638240404,-500.0,8.861e-05,2]
[353188304,1739638240413,-500.0,8.861e-05,2]
[353188305,1739638240423,-500.0,8.861e-05,2]
[353188306,1739638240434,-500.0,8.861e-05,2]
[353188307,1739638240443,-500.0,8.861e-05,2]
[353188308,1739638240453,-500.0,8.861e-05,2]
[353188309,1739638240462,-500.0,8.861e-05,2]
[353188310,1739638240473,-500.0,8.861e-05,2]
[353188311,1739638240483,-500.0,8.861e-05,2]
[353188312,1739638240596,-500.0,8.861e-05,2]
[353188313,1739638240610,-500.0,8.861e-05,2]
[353188314,1739638240620,-570.51961583,8.861e-05,2]
[353188315,1739638240629,-500.0,8.861e-05,2]
[353188316,1739638240638,-500.0,8.861e-05,2]
[353188317,1739638240648,-500.0,8.861e-05,2]
[353188318,1739638240657,-500.0,8.862e-05,2]
[353188319,1739638240666,-500.0,8.862e-05,2]
[353188320,1739638240675,-500.77870863,8.862e-05,2]
[353188321,1739638240684,-500.0,8.862e-05,2]
[353188322,1739638240694,-1425.71,8.862e-05,2]
[353188323,1739638240706,-806.25996184,8.863e-05,2]
[353188324,1739638240724,-500.0,8.863e-05,2]
[353188325,1739638240737,-1159.2,8.863e-05,2]
[353188326,1739638240746,-500.0,8.863e-05,2]
[353188327,1739638240756,-962.16,8.863e-05,2]
[353188328,1739638240765,-500.0,8.863e-05,2]
[353188329,1739638240775,-500.0,8.863e-05,2]
[353188330,1739638240784,-2735.01,8.863e-05,2]
[353188331,1739638240794,-689.47,8.863e-05,2]
[353188332,1739638240804,-500.0,8.863e-05,2]
[353188333,1739638240813,-500.0,8.863e-05,2]
[353188334,1739638240823,-793.08,8.863e-05,2]
[353188335,1739638240833,-500.0,8.863e-05,2]
[353188336,1739638240842,-500.0,8.863e-05,2]
[353188337,1739638240851,-167.22536671,8.863e-05,2]
[353188338,1739638240861,-1252.29,8.863e-05,2]
[353188339,1739638240871,-500.0,8.863e-05,2]
[353188340,1739638240881,-500.0,8.863e-05,2]
[353188341,1739638240890,-500.0,8.863e-05,2]
[353188342,1739638240899,-500.0,8.863e-05,2]
[353188343,1739638240908,-637.37,8.863e-05,2]
[353188344,1739638240918,-502.43674304,8.863e-05,2]
[353188345,1739638240927,-500.0,8.863e-05,2]
[353188346,1739638240936,-508.48,8.863e-05,2]
[353188347,1739638240945,-2236.57,8.863e-05,2]
[353188348,1739638240954,-816.85,8.863e-05,2]
[353188349,1739638240964,-20016.64,8.863e-05,2]
[353188350,1739638240973,-1835.59,8.863e-05,2]
[353188351,1739638240982,-506.17367738,8.863e-05,2]
[353188352,1739638240992,-500.0,8.863e-05,2]
[353188353,1739638241000,-167.22536671,8.864e-05,2]
[353188354,1739638241010,-500.0,8.864e-05,2]
[353188355,1739638241019,-500.0,8.864e-05,2]
[353188356,1739638241029,-500.0,8.864e-05,2]
[353188357,1739638241038,-500.0,8.864e-05,2]
[353188358,1739638241048,-500.0,8.864e-05,2]
[353188359,1739638241057,-500.0,8.864e-05,2]
[353188360,1739638241066,-500.0,8.864e-05,2]
[353188361,1739638241076,-500.0,8.864e-05,2]
[353188362,1739638241085,-500.0,8.864e-05,2]
[353188363,1739638241094,-500.0,8.864e-05,2]
[353188364,1739638241103,-500.0,8.864e-05,2]
[353188365,1739638241113,-500.0,8.864e-05,2]
[353188366,1739638241122,-500.0,8.864e-05,2]
[353188367,1739638241131,-500.0,8.864e-05,2]
[353188368,1739638241141,-500.0,8.864e-05,2]
[353188369,1739638241150,-500.0,8.864e-05,2]
[353188370,1739638241160,-500.0,8.864e-05,2]
[353188371,1739638241169,-500.0,8.864e-05,2]
[353188372,1739638241178,-500.0,8.864e-05,2]
[353188373,1739638241188,-500.0,8.864e-05,2]
[353188374,1739638241198,-500.0,8.864e-05,2]
[353188375,1739638241207,-515.36226041,8.864e-05,2]
[353188376,1739638241216,-500.0,8.864e-05,2]
[353188377,1739638241226,-500.0,8.864e-05,2]
[353188378,1739638241235,-500.0,8.864e-05,2]
[353188379,1739638241245,-500.0,8.864e-05,2]
[353188380,1739638241254,-330.98766199,8.864e-05,2]
[353188381,1739638241264,-500.0,8.864e-05,2]
[353188382,1739638241273,-500.0,8.864e-05,2]
[353188383,1739638241283,-500.0,8.864e-05,2]
[353188384,1739638241292,-500.0,8.864e-05,2]
[353188385,1739638241302,-500.0,8.864e-05,2]
[353188386,1739638241317,-500.0,8.864e-05,2]
[353188387,1739638241327,-500.0,8.864e-05,2]
[353188388,1739638241337,-355.12603858,8.864e-05,2]
[353188389,1739638241346,-317.46682443,8.864e-05,2]
[353188390,1739638241355,-500.0,8.864e-05,2]
[353188391,1739638241365,-500.0,8.864e-05,2]
[353188392,1739638241374,-500.0,8.864e-05,2]
[353188393,1739638241384,-500.0,8.864e-05,2]
[353188394,1739638241394,-500.0,8.864e-05,2]
[353188395,1739638241404,-500.0,8.864e-05,2]
[353188396,1739638241413,-500.0,8.864e-05,2]
[353188397,1739638241423,-500.0,8.864e-05,2]
[353188398,1739638241432,-500.0,8.864e-05,2]
[353188399,1739638241442,-500.0,8.864e-05,2]
[353188400,1739638241451,-500.0,8.864e-05,2]
[353188401,1739638241461,-500.0,8.864e-05,2]
[353188402,1739638241471,-500.0,8.864e-05,2]
[353188403,1739638241480,-500.45804232,8.864e-05,2]
[353188404,1739638241490,-500.37098126,8.864e-05,2]
[353188405,1739638241499,-500.0,8.864e-05,2]
[353188406,1739638241508,-500.0,8.864e-05,2]
[353188407,1739638241517,-500.0,8.864e-05,2]
[353188408,1739638241527,-500.0,8.864e-05,2]
[353188409,1739638241537,-500.0,8.864e-05,2]
[353188410,1739638241547,-500.3968267,8.864e-05,2]
[353188411,1739638241557,-500.0,8.864e-05,2]
[353188412,1739638241566,-258.84578733,8.864e-05,2]
[353188413,1739638241575,-500.0,8.864e-05,2]
[353188414,1739638241585,-500.0,8.864e-05,2]
[353188415,1739638241595,-500.0,8.864e-05,2]
[353188416,1739638241604,-500.0,8.864e-05,2]
[353188417,1739638241613,-500.0,8.864e-05,2]
[353188418,1739638241623,-500.0,8.864e-05,2]
[353188419,1739638241632,-500.0,8.864e-05,2]
[353188420,1739638241641,-500.0,8.864e-05,2]
[353188421,1739638241650,-500.0,8.864e-05,2]
[353188422,1739638241660,-500.66585079,8.864e-05,2]
[353188423,1739638241669,-1057.97,8.864e-05,2]
[353188424,1739638241678,-500.0,8.864e-05,2]
[353188425,1739638241687,-500.0,8.864e-05,2]
[353188426,1739638241697,-500.48230834,8.864e-05,2]
[353188427,1739638241706,-500.0,8.864e-05,2]
[353188428,1739638241716,-500.0,8.864e-05,2]
[353188429,1739638241725,-500.0,8.864e-05,2]
[353188430,1739638241734,-829.38,8.864e-05,2]
[353188431,1739638241744,-500.0,8.864e-05,2]
[353188432,1739638241754,-500.0,8.864e-05,2]
[353188433,1739638241763,-500.0,8.864e-05,2]
[353188434,1739638241772,-501.20868546,8.864e-05,2]
[353188435,1739638241782,-500.0,8.864e-05,2]
[353188436,1739638241791,-500.0,8.864e-05,2]
[353188437,1739638241802,-504.66679616,8.864e-05,2]
[353188438,1739638241811,-500.0,8.864e-05,2]
[353188439,1739638241821,-500.0,8.864e-05,2]
[353188440,1739638241831,-500.0,8.864e-05,2]
[353188441,1739638241841,-500.0,8.864e-05,2]
[353188442,1739638241850,-500.0,8.864e-05,2]
[353188443,1739638241859,-500.0,8.864e-05,2]
[353188444,1739638241868,-500.0,8.864e-05,2]
[353188445,1739638241878,-500.0,8.864e-05,2]
[353188446,1739638241887,-500.0,8.864e-05,2]
[353188447,1739638241897,-500.6036247,8.864e-05,2]
[353188448,1739638241906,-501.45567627,8.864e-05,2]
[353188449,1739638241916,-500.0,8.864e-05,2]
[353188450,1739638241925,-500.0,8.864e-05,2]
[353188451,1739638241935,-500.0,8.864e-05,2]
[353188452,1739638241944,-503.12852159,8.864e-05,2]
[353188453,1739638241954,-500.0,8.864e-05,2]
[353188454,1739638241963,-764.47,8.864e-05,2]
[353188455,1739638241973,-500.0,8.864e-05,2]
[353188456,1739638241982,-500.77472186,8.864e-05,2]
[353188457,1739638241992,-693.86,8.864e-05,2]
[353188458,1739638242001,-1053.09,8.864e-05,2]
[353188459,1739638242011,-500.0,8.864e-05,2]
[353188460,1739638242021,-500.0,8.864e-05,2]
[353188461,1739638242031,-500.0,8.864e-05,2]
[353188462,1739638242040,-500.0,8.864e-05,2]
[353188463,1739638242051,-500.0,8.864e-05,2]
[353188464,1739638242061,-500.0,8.864e-05,2]
[353188465,1739638242070,-500.0,8.864e-05,2]
[353188466,1739638242080,-502.44304798,8.864e-05,2]
[353188467,1739638242089,-500.0,8.864e-05,2]
[353188468,1739638242098,-500.0,8.864e-05,2]
[353188469,1739638242108,-500.0,8.864e-05,2]
[353188470,1739638242117,-500.0,8.864e-05,2]
[353188471,1739638242127,-500.0,8.864e-05,2]
[353188472,1739638242137,-504.40047805,8.864e-05,2]
[353188473,1739638242146,-577.61,8.864e-05,2]
[353188474,1739638242156,-503.08396103,8.864e-05,2]
[353188475,1739638242165,-812.44,8.864e-05,2]
[353188476,1739638242175,-582.26072684,8.864e-05,2]
[353188477,1739638242184,-737.44,8.864e-05,2]
[353188478,1739638242195,-500.0,8.864e-05,2]
[353188479,1739638242205,-178.82496126,8.864e-05,2]
[353188480,1739638242215,-500.0,8.864e-05,2]
[353188481,1739638242321,-500.0,8.864e-05,2]
[353188482,1739638242332,-500.0,8.864e-05,2]
[353188483,1739638242342,-500.0,8.864e-05,2]
[353188484,1739638242351,-500.0,8.864e-05,2]
[353188485,1739638242361,-500.0,8.864e-05,2]
[353188486,1739638242371,-500.0,8.864e-05,2]
[353188487,1739638242380,-655.27,8.864e-05,2]
[353188488,1739638242394,-500.0,8.864e-05,2]
[353188489,1739638242404,-500.0,8.864e-05,2]
[353188490,1739638242414,-500.0,8.864e-05,2]
[353188491,1739638242423,-500.0,8.864e-05,2]
[353188492,1739638242433,-500.0,8.864e-05,2]
[353188493,1739638242443,-500.0,8.864e-05,2]
[353188494,1739638242453,-500.0,8.864e-05,2]
[353188495,1739638242463,-501.23553447,8.864e-05,2]
[353188496,1739638242474,-500.0,8.864e-05,2]
[353188497,1739638242485,-500.0,8.864e-05,2]
[353188498,1739638242498,-500.0,8.864e-05,2]
[353188499,1739638242508,-500.48680402,8.864e-05,2]
[353188500,1739638242517,-504.95647449,8.864e-05,2]
[353188501,1739638242527,-500.0,8.864e-05,2]
[353188502,1739638242537,-566.28,8.864e-05,2]
[353188503,1739638242546,-712.3,8.864e-05,2]
[353188504,1739638242557,-500.0,8.864e-05,2]
[353188505,1739638242567,-500.0,8.864e-05,2]
[353188506,1739638242577,-500.0,8.864e-05,2]
[353188507,1739638242586,-500.72402134,8.864e-05,2]
[353188508,1739638242595,-500.0,8.864e-05,2]
[353188509,1739638242606,-501.02283733,8.864e-05,2]
[353188510,1739638242615,-500.0,8.864e-05,2]
[353188511,1739638242624,-500.0,8.864e-05,2]
[353188512,1739638242634,-502.08902663,8.864e-05,2]
[353188513,1739638242643,-2683.66,8.864e-05,2]
[353188514,1739638242653,-500.0,8.864e-05,2]
[353188515,1739638242663,-500.0,8.864e-05,2]
[353188516,1739638242672,-500.0,8.864e-05,2]
[353188517,1739638242682,-500.0,8.864e-05,2]
[353188518,1739638242691,-500.0,8.864e-05,2]
[353188519,1739638242701,-500.0,8.864e-05,2]
[353188520,1739638242711,-500.0,8.864e-05,2]
[353188521,1739638242720,-2780.9,8.864e-05,2]
[353188522,1739638242730,-468.54004145,8.864e-05,2]
[353188523,1739638242739,-173.25208175,8.864e-05,2]
[353188524,1739638242748,-500.80941133,8.864e-05,2]
[353188525,1739638242758,-500.31375197,8.864e-05,2]
[353188526,1739638242767,-500.0,8.864e-05,2]
[353188528,1739638242776,-500.0,8.864e-05,2]
[353188530,1739638242785,-615.95,8.864e-05,2]
[353188531,1739638242794,-500.0,8.864e-05,2]
[353188532,1739638242804,-1334.48,8.864e-05,2]
[353188534,1739638242813,-500.0,8.864e-05,2]
[353188535,1739638242822,-509.19372021,8.864e-05,2]
[353188536,1739638242832,-618.32822037,8.864e-05,2]
[353188537,1739638242841,-500.0,8.864e-05,2]
[353188538,1739638242850,-523.27,8.864e-05,2]
[353188539,1739638242859,-503.11454854,8.864e-05,2]
[353188540,1739638242869,-500.0,8.864e-05,2]
[353188541,1739638242878,-348.84038606,8.864e-05,2]
[353188543,1739638242888,-500.0,8.864e-05,2]
[353188544,1739638242897,-500.0,8.864e-05,2]
[353188545,1739638242906,-263.67472535,8.864e-05,2]
[353188546,1739638242916,-500.0,8.864e-05,2]
[353188547,1739638242925,-554.63,8.864e-05,2]
[353188548,1739638242935,-500.0,8.864e-05,2]
[353188549,1739638242944,-500.0,8.864e-05,2]
[353188550,1739638242954,-502.67604618,8.864e-05,2]
[353188551,1739638242964,-500.0,8.864e-05,2]
[353188552,1739638242973,-500.0,8.864e-05,2]
[353188553,1739638242983,-500.0,8.864e-05,2]
[353188554,1739638242993,-2509.17,8.864e-05,2]
[353188555,1739638243003,-223.8687845,8.864e-05,2]
[353188556,1739638243013,-502.01419644,8.864e-05,2]
[353188557,1739638243022,-500.0,8.864e-05,2]
[353188559,1739638243032,-500.0,8.864e-05,2]
[353188561,1739638243042,-500.0,8.864e-05,2]
[353188562,1739638243054,-500.0,8.864e-05,2]
[353188563,1739638243064,-500.0,8.864e-05,2]
[353188564,1739638243075,-500.0,8.864e-05,2]
[353188565,1739638243085,-628.57978206,8.864e-05,2]
[353188566,1739638243094,-500.0,8.864e-05,2]
[353188567,1739638243105,-500.0,8.864e-05,2]
[353188568,1739638243116,-500.0,8.864e-05,2]
[353188569,1739638243126,-607.68139883,8.864e-05,2]
[353188570,1739638243136,-1140.15,8.864e-05,2]
[353188572,1739638243146,-500.0,8.864e-05,2]
[353188573,1739638243156,-500.0,8.864e-05,2]
[353188574,1739638243165,-500.0,8.864e-05,2]
[353188575,1739638243175,-623.8491984,8.864e-05,2]
[353188576,1739638243184,-500.0,8.864e-05,2]
[353188577,1739638243194,-500.0,8.864e-05,2]
[353188578,1739638243203,-500.0,8.864e-05,2]
[353188579,1739638243213,-500.0,8.864e-05,2]
[353188580,1739638243223,-272.46132601,8.864e-05,2]
[353188581,1739638243233,-500.0,8.864e-05,2]
[353188582,1739638243242,-150.87200808,8.864e-05,2]
[353188583,1739638243252,-501.26928436,8.864e-05,2]
[353188584,1739638243262,-500.0,8.864e-05,2]
[353188585,1739638243272,-500.0,8.864e-05,2]
[353188586,1739638243282,-500.0,8.864e-05,2]
[353188587,1739638243292,-500.0,8.864e-05,2]
[353188588,1739638243304,-500.0,8.864e-05,2]
[353188589,1739638243314,-500.0,8.864e-05,2]
[353188590,1739638243324,-500.0,8.864e-05,2]
[353188591,1739638243334,-769.13,8.864e-05,2]
[353188592,1739638243343,-500.0,8.864e-05,2]
[353188593,1739638243352,-500.0,8.864e-05,2]
[353188594,1739638243362,-500.0,8.864e-05,2]
[353188595,1739638243372,-500.0,8.864e-05,2]
[353188596,1739638243381,-504.92,8.864e-05,2]
[353188597,1739638243392,-500.0,8.864e-05,2]
[353188598,1739638243404,-504.23495781,8.864e-05,2]
[353188599,1739638243413,-596.82039196,8.864e-05,2]
[353188600,1739638243423,-500.0,8.864e-05,2]
[353188601,1739638243432,-500.0,8.864e-05,2]
[353188602,1739638243443,-616.52825209,8.864e-05,2]
[353188603,1739638243452,-500.0,8.864e-05,2]
[353188604,1739638243462,-500.0,8.864e-05,2]
[353188605,1739638243472,-500.0,8.864e-05,2]
[353188607,1739638243482,-500.0,8.864e-05,2]
[353188609,1739638243492,-500.0,8.864e-05,2]
[353188611,1739638243502,-502.01246421,8.864e-05,2]
[353188612,1739638243511,-500.0,8.864e-05,2]
[353188613,1739638243521,-500.0,8.864e-05,2]
[353188614,1739638243530,-500.0,8.864e-05,2]
[353188615,1739638243541,-500.0,8.864e-05,2]
[353188616,1739638243551,-500.0,8.864e-05,2]
[353188617,1739638243560,-500.0,8.864e-05,2]
[353188618,1739638243570,-337.41531603,8.864e-05,2]
[353188619,1739638243580,-500.0,8.864e-05,2]
[353188620,1739638243590,-500.60354051,8.864e-05,2]
[353188621,1739638243600,-500.0,8.864e-05,2]
[353188622,1739638243610,-500.0,8.864e-05,2]
[353188623,1739638243620,-500.0,8.864e-05,2]
[353188624,1739638243629,-500.0,8.864e-05,2]
[353188625,1739638243639,-500.0,8.864e-05,2]
[353188626,1739638243649,-506.69463046,8.864e-05,2]
[353188627,1739638243658,-1020.02,8.864e-05,2]
[353188628,1739638243668,-500.0,8.864e-05,2]
[353188629,1739638243676,-332.46123792,8.864e-05,2]
[353188630,1739638243686,-500.0,8.864e-05,2]
[353188631,1739638243696,-500.0,8.864e-05,2]
[353188632,1739638243706,-500.0,8.864e-05,2]
[353188633,1739638243716,-500.0,8.864e-05,2]
[353188634,1739638243725,-500.0,8.864e-05,2]
[353188635,1739638243735,-500.0,8.864e-05,2]
[353188636,1739638243745,-151.0,8.864e-05,2]
[353188637,1739638243754,-167.22536671,8.864e-05,2]
[353188638,1739638243764,-500.0,8.865e-05,2]
[353188639,1739638243774,-500.0,8.865e-05,2]
[353188640,1739638243784,-500.0,8.865e-05,2]
[353188641,1739638243793,-500.0,8.865e-05,2]
[353188642,1739638243803,-482.02812297,8.865e-05,2]
[353188643,1739638243813,-500.0,8.865e-05,2]
[353188644,1739638243823,-500.0,8.865e-05,2]
[353188645,1739638243833,-500.0,8.865e-05,2]
[353188646,1739638243842,-503.11493166,8.865e-05,2]
[353188647,1739638243946,-621.47299609,8.865e-05,2]
[353188648,1739638243956,-500.0,8.865e-05,2]
[353188649,1739638243966,-614.22994079,8.865e-05,2]
[353188650,1739638243976,-500.0,8.865e-05,2]
[353188651,1739638243986,-505.80435576,8.865e-05,2]
[353188652,1739638243996,-500.0,8.865e-05,2]
[353188653,1739638244007,-500.0,8.865e-05,2]
[353188654,1739638244017,-500.0,8.865e-05,2]
[353188655,1739638244026,-500.0,8.865e-05,2]
[353188656,1739638244036,-500.0,8.865e-05,2]
[353188657,1739638244046,-530.97172849,8.865e-05,2]
[353188658,1739638244056,-500.0,8.865e-05,2]
[353188659,1739638244066,-500.0,8.865e-05,2]
[353188660,1739638244075,-500.0,8.865e-05,2]
[353188661,1739638244084,-500.0,8.865e-05,2]
[353188662,1739638244094,-500.0,8.865e-05,2]
[353188663,1739638244103,-552.98221707,8.865e-05,2]
[353188664,1739638244113,-156.55,8.866e-05,2]
[353188665,1739638244123,-374.99246179,8.872e-05,2]
[353188666,1739638244133,-1283.21783221,8.872e-05,2]
[353188667,1739638244143,-10985.43974366,8.873e-05,2]
[353188668,1739638244374,-500.0,8.862e-05,2]
[353188669,1739638244384,-130.1115565,8.873e-05,2]
[353188670,1739638244400,-3727.77999999,8.873e-05,2]
[353188681,1739638246248,-500.0,8.861e-05,2]
[353188682,1739638246261,-500.0,8.861e-05,2]
[353188683,1739638246271,-839.99744223,8.864e-05,2]
[353188684,1739638246281,-345.31744594,8.872e-05,2]
[353188685,1739638246291,-82136.34533131,8.873e-05,2]
[353188686,1739638246304,-83396.89658517,8.873e-05,2]
[353188687,1739638285654,5000.0,8.843e-05,2]
[353188697,1739638720722,651.239,8.695e-05,2]
[353188698,1739638721004,176.9115071,8.695e-05,2]
[353188699,1739638784542,1177.4972926,7.93e-05,2]
[353188701,1739638968097,24900.0,7.864e-05,2]
[353188702,1739639123622,396.0,8.798e-05,2]
[353188726,1739639432455,-300.0,8.85e-05,2]
[353188728,1739639432466,-300.0,8.857e-05,2]
[353188730,1739639432477,-500.0,8.858e-05,2]
[353188732,1739639432486,-1612.57,8.858e-05,2]
[353188734,1739639432496,-500.0,8.858e-05,2]
[353188737,1739639432507,-3969.54,8.858e-05,2]
[353188739,1739639432517,-500.0,8.858e-05,2]
[353188741,1739639432526,-500.0,8.858e-05,2]
[353188742,1739639432535,-500.0,8.858e-05,2]
[353188744,1739639432545,-585.67,8.858e-05,2]
[353188746,1739639432554,-500.0,8.858e-05,2]
[353188749,1739639432564,-2713.96,8.858e-05,2]
[353188751,1739639432574,-2379.68,8.858e-05,2]
[353188753,1739639432583,-1627.24,8.858e-05,2]
[353188755,1739639432593,-842.95,8.858e-05,2]
[353188757,1739639432603,-7649.35,8.858e-05,2]
[353188759,1739639432612,-1325.54,8.858e-05,2]
[353188761,1739639432622,-500.0,8.858e-05,2]
[353188764,1739639432631,-532.51,8.858e-05,2]
[353188767,1739639432641,-500.0,8.858e-05,2]
[353188770,1739639432651,-617.69,8.858e-05,2]
[353188773,1739639432661,-3248.48,8.858e-05,2]
[353188775,1739639432670,-2002.06,8.858e-05,2]
[353188777,1739639432679,-500.0,8.858e-05,2]
[353188779,1739639432688,-1544.6,8.858e-05,2]
[353188781,1739639432698,-887.79,8.858e-05,2]
[353188783,1739639432707,-2900.12,8.858e-05,2]
[353188785,1739639432716,-500.0,8.858e-05,2]
[353188787,1739639432726,-5578.17,8.858e-05,2]
[353188789,1739639432735,-500.0,8.858e-05,2]
[353188791,1739639432744,-500.0,8.858e-05,2]
[353188793,1739639432753,-500.0,8.858e-05,2]
[353188796,1739639432762,-500.0,8.858e-05,2]
[353188799,1739639432775,-500.0,8.858e-05,2]
[353188802,1739639432784,-500.0,8.858e-05,2]
[353188804,1739639432793,-500.0,8.858e-05,2]
[353188806,1739639432803,-500.0,8.858e-05,2]
[353188808,1739639432812,-578.20784632,8.858e-05,2]
[353188810,1739639432822,-500.0,8.858e-05,2]
[353188812,1739639432831,-500.0,8.859e-05,2]
[353188814,1739639432841,-512.59828204,8.859e-05,2]
[353188816,1739639432851,-500.0,8.859e-05,2]
[353188818,1739639432860,-500.0,8.859e-05,2]
[353188820,1739639432869,-500.0,8.859e-05,2]
[353188822,1739639432878,-500.0,8.859e-05,2]
[353188824,1739639432887,-500.0,8.859e-05,2]
[353188826,1739639432897,-500.0,8.859e-05,2]
[353188828,1739639432906,-500.0,8.859e-05,2]
[353188830,1739639432916,-201.09832082,8.859e-05,2]
[353188832,1739639432926,-500.0,8.859e-05,2]
[353188834,1739639432935,-1008.44,8.859e-05,2]
[353188836,1739639432945,-408.39904798,8.859e-05,2]
[353188838,1739639432955,-500.0,8.859e-05,2]
[353188840,1739639432965,-500.0,8.859e-05,2]
[353188842,1739639432974,-500.0,8.859e-05,2]
[353188844,1739639432984,-322.49901301,8.859e-05,2]
[353188846,1739639432995,-500.0,8.859e-05,2]
[353188848,1739639433004,-867.52,8.859e-05,2]
[353188850,1739639433014,-500.0,8.859e-05,2]
[353188852,1739639433024,-500.0,8.859e-05,2]
[353188854,1739639433034,-848.0,8.859e-05,2]
[353188856,1739639433044,-473.39001856,8.859e-05,2]
[353188858,1739639433054,-500.0,8.859e-05,2]
[353188860,1739639433064,-500.0,8.859e-05,2]
[353188862,1739639433074,-500.0,8.859e-05,2]
[353188864,1739639433084,-500.0,8.859e-05,2]
[353188866,1739639433094,-810.62,8.859e-05,2]
[353188868,1739639433104,-500.0,8.859e-05,2]
[353188870,1739639433114,-500.0,8.859e-05,2]
[353188872,1739639433124,-1451.44,8.859e-05,2]
[353188874,1739639433134,-500.0,8.859e-05,2]
[353188876,1739639433144,-861.24,8.859e-05,2]
[353188878,1739639433155,-477.17546932,8.859e-05,2]
[353188881,1739639433169,-22.82453068,8.859e-05,2]